[Event "*** Titled Tuesday Blitz"]
[Site "Chess.com"]
[Date "2018.12.04"]
[Round "2"]
[White "mitrabhaa"]
[Black "gmcorrales"]
[Result "0-1"]
[WhiteElo "2580"]
[BlackElo "2785"]
[TimeControl "180+2"]
[EndTime "13:23:47 PST"]
[Termination "gmcorrales won on time"]

1. Nf3 {[%clk 0:02:59.3]} 1... Nf6 {[%clk 0:02:24.2]} 2. g3 {[%clk 0:02:48.8]}
2... g6 {[%clk 0:02:25.1]} 3. Bg2 {[%clk 0:02:46.2]} 3... c5 {[%clk 0:02:26.3]}
4. O-O {[%clk 0:02:42.2]} 4... Bg7 {[%clk 0:02:27.3]} 5. b3 {[%clk 0:02:39.4]}
5... Nc6 {[%clk 0:02:27.8]} 6. Bb2 {[%clk 0:02:35.5]} 6... O-O {[%clk
0:02:28.5]} 7. c4 {[%clk 0:02:33.4]} 7... d6 {[%clk 0:02:28.6]} 8. d4 {[%clk
0:02:32.8]} 8... Bf5 {[%clk 0:02:26.8]} 9. d5 {[%clk 0:02:28.2]} 9... Na5 {[%clk
0:02:17.1]} 10. Nbd2 {[%clk 0:02:16.7]} 10... a6 {[%clk 0:02:17.9]} 11. Re1
{[%clk 0:02:14.1]} 11... b5 {[%clk 0:02:16.7]} 12. e4 {[%clk 0:02:10.8]} 12...
Bg4 {[%clk 0:02:17.7]} 13. h3 {[%clk 0:02:07.9]} 13... Bxf3 {[%clk 0:02:18.6]}
14. Bxf3 {[%clk 0:02:08.4]} 14... bxc4 {[%clk 0:02:19.5]} 15. bxc4 {[%clk
0:02:04.2]} 15... Nd7 {[%clk 0:02:20.4]} 16. Bxg7 {[%clk 0:02:02.9]} 16... Kxg7
{[%clk 0:02:22.3]} 17. Qc2 {[%clk 0:02:03.4]} 17... Ne5 {[%clk 0:02:21.2]} 18.
Bg2 {[%clk 0:02:04]} 18... Rb8 {[%clk 0:02:01.8]} 19. f4 {[%clk 0:02:00.2]}
19... Nd7 {[%clk 0:02:02.8]} 20. Rab1 {[%clk 0:01:56.1]} 20... Qc7 {[%clk
0:02:01.9]} 21. h4 {[%clk 0:01:49]} 21... h5 {[%clk 0:01:55.3]} 22. Bf3 {[%clk
0:01:42.7]} 22... Kg8 {[%clk 0:01:50.4]} 23. Kg2 {[%clk 0:01:37.2]} 23... Rxb1
{[%clk 0:01:50.6]} 24. Rxb1 {[%clk 0:01:30.9]} 24... Rb8 {[%clk 0:01:52.5]} 25.
g4 {[%clk 0:01:26.8]} 25... hxg4 {[%clk 0:01:52.8]} 26. Bxg4 {[%clk 0:01:24.9]}
26... Nf6 {[%clk 0:01:45.6]} 27. Bf3 {[%clk 0:01:22.1]} 27... Kg7 {[%clk
0:01:45.2]} 28. Qc3 {[%clk 0:01:19]} 28... Rxb1 {[%clk 0:01:45.1]} 29. Nxb1
{[%clk 0:01:17.1]} 29... Qb6 {[%clk 0:01:45.1]} 30. Nd2 {[%clk 0:01:17.4]} 30...
Qb4 {[%clk 0:01:45.6]} 31. Qxb4 {[%clk 0:01:15.4]} 31... cxb4 {[%clk 0:01:47.5]}
32. Be2 {[%clk 0:01:15.9]} 32... Nd7 {[%clk 0:01:48.1]} 33. Kf3 {[%clk
0:01:14.9]} 33... Nc5 {[%clk 0:01:47.9]} 34. Ke3 {[%clk 0:01:16.3]} 34... b3
{[%clk 0:01:48.9]} 35. a3 {[%clk 0:01:13.7]} 35... b2 {[%clk 0:01:36.6]} 36. Bd3
{[%clk 0:01:13.5]} 36... Nab3 {[%clk 0:01:31.1]} 37. Nxb3 {[%clk 0:01:03.1]}
37... Nxb3 {[%clk 0:01:32.9]} 38. Bc2 {[%clk 0:01:03.7]} 38... Nc5 {[%clk
0:01:22.6]} 39. Kd2 {[%clk 0:01:03.6]} 39... Kh6 {[%clk 0:01:23.5]} 40. Kc3
{[%clk 0:00:59.8]} 40... Kh5 {[%clk 0:01:21.5]} 41. Kxb2 {[%clk 0:00:55.9]}
41... Kxh4 {[%clk 0:01:22.5]} 42. Kc3 {[%clk 0:00:57]} 42... Kg4 {[%clk
0:01:20.1]} 43. f5 {[%clk 0:00:58.1]} 43... g5 {[%clk 0:01:15.5]} 44. Kd4 {[%clk
0:00:56.5]} 44... f6 {[%clk 0:01:15]} 45. Ke3 {[%clk 0:00:47.2]} 45... Kg3
{[%clk 0:01:14]} 46. Bd1 {[%clk 0:00:48]} 46... g4 {[%clk 0:01:13.8]} 47. Be2
{[%clk 0:00:40.7]} 47... a5 {[%clk 0:01:14.5]} 48. Bd1 {[%clk 0:00:38.2]} 48...
Nd7 {[%clk 0:01:12.9]} 49. Be2 {[%clk 0:00:32.3]} 49... Ne5 {[%clk 0:01:13.9]}
50. Kd4 {[%clk 0:00:09.9]} 50... Kf4 {[%clk 0:01:10.8]} 51. c5 {[%clk 0:00:05]}
51... dxc5+ {[%clk 0:01:07]} 52. Kxc5 {[%clk 0:00:05.9]} 52... g3 {[%clk
0:01:08.4]} 53. Bf1 {[%clk 0:00:06.7]} 53... Kxe4 {[%clk 0:01:09.6]} 54. Kb5
{[%clk 0:00:03.1]} 54... Kxd5 {[%clk 0:01:03.2]} 0-1

[Event "*** Titled Tuesday Blitz"]
[Site "Chess.com"]
[Date "2018.12.04"]
[Round "2"]
[White "Zq1"]
[Black "MartinNeu"]
[Result "1/2-1/2"]
[WhiteElo "2511"]
[BlackElo "2488"]
[TimeControl "180+2"]
[EndTime "13:23:55 PST"]
[Termination "Game drawn by agreement"]

1. d4 {[%clk 0:02:59.5]} 1... Nf6 {[%clk 0:03:00.6]} 2. c4 {[%clk 0:02:56.3]}
2... e6 {[%clk 0:03:01.3]} 3. g3 {[%clk 0:02:56.7]} 3... c5 {[%clk 0:02:59.2]}
4. Nf3 {[%clk 0:02:56.1]} 4... cxd4 {[%clk 0:02:57.8]} 5. Nxd4 {[%clk
0:02:57.1]} 5... Bb4+ {[%clk 0:02:58.9]} 6. Bd2 {[%clk 0:02:54.1]} 6... Be7
{[%clk 0:02:59.2]} 7. Bg2 {[%clk 0:02:53.7]} 7... Nc6 {[%clk 0:03:00]} 8. e3
{[%clk 0:02:53.4]} 8... O-O {[%clk 0:02:57.5]} 9. O-O {[%clk 0:02:53.1]} 9... d5
{[%clk 0:02:32.4]} 10. cxd5 {[%clk 0:02:48.2]} 10... Nxd4 {[%clk 0:02:09.9]} 11.
exd4 {[%clk 0:02:48]} 11... Nxd5 {[%clk 0:01:59.1]} 12. Nc3 {[%clk 0:02:47.5]}
12... Bf6 {[%clk 0:01:59.5]} 13. Nxd5 {[%clk 0:02:37.8]} 13... exd5 {[%clk
0:02:00.5]} 14. Qb3 {[%clk 0:02:35.6]} 14... Be6 {[%clk 0:01:49.8]} 15. Bb4
{[%clk 0:02:29.2]} 15... Re8 {[%clk 0:01:48.7]} 16. Bc3 {[%clk 0:02:16.3]} 16...
Qd7 {[%clk 0:01:39.9]} 17. Rfe1 {[%clk 0:02:15.5]} 17... b6 {[%clk 0:01:36.9]}
18. a4 {[%clk 0:02:10.9]} 18... Rab8 {[%clk 0:01:33.3]} 19. Rac1 {[%clk
0:02:07.2]} 19... Rec8 {[%clk 0:01:32.6]} 20. h4 {[%clk 0:01:59.2]} 20... h6
{[%clk 0:01:33.4]} 21. Qb5 {[%clk 0:01:48.6]} 21... Qb7 {[%clk 0:01:13.2]} 22.
Ra1 {[%clk 0:01:40.9]} 22... a6 {[%clk 0:01:13.2]} 23. Qb3 {[%clk 0:01:40.9]}
23... Qd7 {[%clk 0:01:12.4]} 24. Bf1 {[%clk 0:01:38.3]} 24... Qb7 {[%clk
0:01:05.2]} 25. a5 {[%clk 0:01:33.1]} 25... b5 {[%clk 0:01:02.6]} 26. Rac1
{[%clk 0:01:30.9]} 26... Qa7 {[%clk 0:01:02.7]} 27. Rcd1 {[%clk 0:01:23]} 27...
b4 {[%clk 0:01:02.5]} 28. Bd2 {[%clk 0:01:19.6]} 28... Bxd4 {[%clk 0:01:02.9]}
29. Be3 {[%clk 0:01:18.6]} 29... Bxe3 {[%clk 0:01:00.3]} 30. Qxe3 {[%clk
0:01:19.2]} 30... Qxe3 {[%clk 0:00:52.6]} 31. Rxe3 {[%clk 0:01:19.4]} 31... Rc5
{[%clk 0:00:53.6]} 32. Bxa6 {[%clk 0:01:12.3]} 32... Rxa5 {[%clk 0:00:54.3]} 33.
Bf1 {[%clk 0:01:11.1]} 33... Ra2 {[%clk 0:00:51.3]} 34. Rd2 {[%clk 0:01:09]}
34... Ra1 {[%clk 0:00:48.5]} 35. Kg2 {[%clk 0:01:08.8]} 35... Rc8 {[%clk
0:00:44]} 36. Be2 {[%clk 0:01:08.1]} 36... g5 {[%clk 0:00:38]} 37. hxg5 {[%clk
0:01:04.7]} 37... hxg5 {[%clk 0:00:39.9]} 38. Bf3 {[%clk 0:01:05.5]} 38... g4
{[%clk 0:00:29.2]} 39. Bxd5 {[%clk 0:00:52.4]} 39... Rcc1 {[%clk 0:00:28.5]} 40.
f4 {[%clk 0:00:51.4]} 40... Rg1+ {[%clk 0:00:27.5]} 41. Kf2 {[%clk 0:00:51.8]}
41... Raf1+ {[%clk 0:00:28.2]} 42. Ke2 {[%clk 0:00:52.4]} 42... Re1+ {[%clk
0:00:29.6]} 43. Kf2 {[%clk 0:00:48.2]} 43... Rgf1+ {[%clk 0:00:29.2]} 44. Kg2
{[%clk 0:00:49]} 44... Rg1+ {[%clk 0:00:26.5]} 45. Kf2 {[%clk 0:00:49.5]} 45...
Rgf1+ {[%clk 0:00:23.8]} 46. Kg2 {[%clk 0:00:49.5]} 46... Rxe3 {[%clk
0:00:25.2]} 47. Kxf1 {[%clk 0:00:49.2]} 47... Rxg3 {[%clk 0:00:26.5]} 48. Bxe6
{[%clk 0:00:48.9]} 48... fxe6 {[%clk 0:00:27.2]} 49. Rd7 {[%clk 0:00:27.1]}
49... Rb3 {[%clk 0:00:17.5]} 50. Re7 {[%clk 0:00:27.7]} 50... Rxb2 {[%clk
0:00:17.1]} 51. Rxe6 {[%clk 0:00:28.8]} 51... b3 {[%clk 0:00:18.1]} 52. Rb6
{[%clk 0:00:29.3]} 52... g3 {[%clk 0:00:18.6]} 53. Kg1 {[%clk 0:00:30.3]} 53...
Kf8 {[%clk 0:00:18.5]} 54. Rb7 {[%clk 0:00:30.6]} 54... Ke8 {[%clk 0:00:16.3]}
55. f5 {[%clk 0:00:31.4]} 55... Kf8 {[%clk 0:00:17.3]} 56. Rb4 {[%clk
0:00:24.1]} 56... Kf7 {[%clk 0:00:17.4]} 57. Rb6 {[%clk 0:00:25]} 57... Ke7
{[%clk 0:00:18.2]} 58. Re6+ {[%clk 0:00:25.7]} 58... Kf7 {[%clk 0:00:19.2]} 59.
Rb6 {[%clk 0:00:26.7]} 59... g2 {[%clk 0:00:19.6]} 60. Kh2 {[%clk 0:00:24.7]}
60... Ke7 {[%clk 0:00:19.3]} 61. Re6+ {[%clk 0:00:24.8]} 61... Kf7 {[%clk
0:00:20.4]} 62. Rb6 {[%clk 0:00:25.3]} 62... Ke7 {[%clk 0:00:21.4]} 1/2-1/2

[Event "*** Titled Tuesday Blitz"]
[Site "Chess.com"]
[Date "2018.12.04"]
[Round "2"]
[White "kasparik_garik"]
[Black "jmduque"]
[Result "1/2-1/2"]
[WhiteElo "2503"]
[BlackElo "2390"]
[TimeControl "180+2"]
[EndTime "13:23:59 PST"]
[Termination "Game drawn by repetition"]

1. e4 {[%clk 0:02:59]} 1... e5 {[%clk 0:03:00.7]} 2. Nf3 {[%clk 0:02:59.5]} 2...
Nc6 {[%clk 0:03:01.8]} 3. Bb5 {[%clk 0:03:00]} 3... a6 {[%clk 0:03:03.2]} 4. Ba4
{[%clk 0:03:00.9]} 4... Nf6 {[%clk 0:03:04.1]} 5. d3 {[%clk 0:03:01.9]} 5... b5
{[%clk 0:03:04.5]} 6. Bb3 {[%clk 0:03:02.5]} 6... Be7 {[%clk 0:03:06.1]} 7. a3
{[%clk 0:03:00]} 7... d6 {[%clk 0:03:06.7]} 8. Nbd2 {[%clk 0:02:55.9]} 8... Na5
{[%clk 0:03:04.6]} 9. Ba2 {[%clk 0:02:55.6]} 9... c5 {[%clk 0:03:05.8]} 10. O-O
{[%clk 0:02:55.5]} 10... O-O {[%clk 0:03:06]} 11. Re1 {[%clk 0:02:56.4]} 11...
Be6 {[%clk 0:03:01]} 12. Nf1 {[%clk 0:02:56.6]} 12... Bxa2 {[%clk 0:03:00.5]}
13. Rxa2 {[%clk 0:02:57.5]} 13... Nc6 {[%clk 0:03:01.1]} 14. Ra1 {[%clk
0:02:57.1]} 14... Re8 {[%clk 0:03:00.9]} 15. Bg5 {[%clk 0:02:52.8]} 15... Nd7
{[%clk 0:02:54.4]} 16. Bxe7 {[%clk 0:02:49.4]} 16... Nxe7 {[%clk 0:02:55.5]} 17.
Ne3 {[%clk 0:02:51.1]} 17... Nf8 {[%clk 0:02:56.3]} 18. c3 {[%clk 0:02:51.2]}
18... Ne6 {[%clk 0:02:57.2]} 19. d4 {[%clk 0:02:52.2]} 19... exd4 {[%clk
0:02:55.6]} 20. cxd4 {[%clk 0:02:53.1]} 20... d5 {[%clk 0:02:49.1]} 21. exd5
{[%clk 0:02:40.9]} 21... Nxd5 {[%clk 0:02:48.8]} 22. Nxd5 {[%clk 0:02:34.2]}
22... Qxd5 {[%clk 0:02:49.3]} 23. Re5 {[%clk 0:02:35]} 23... Qc4 {[%clk
0:02:08.5]} 24. dxc5 {[%clk 0:02:26.8]} 24... Nxc5 {[%clk 0:01:21.5]} 25. Rc1
{[%clk 0:02:05.3]} 25... Red8 {[%clk 0:01:20.9]} 26. Nd2 {[%clk 0:01:09.3]}
26... Qxc1 {[%clk 0:01:00.5]} 27. Qxc1 {[%clk 0:01:10]} 27... Nd3 {[%clk
0:01:01.8]} 28. Qb1 {[%clk 0:00:59.5]} 28... Nxe5 {[%clk 0:01:01.6]} 29. Nf1
{[%clk 0:01:00.5]} 29... Nc4 {[%clk 0:00:53.6]} 30. a4 {[%clk 0:00:41.1]} 30...
Nd2 {[%clk 0:00:46.7]} 31. Qa2 {[%clk 0:00:36.4]} 31... Rac8 {[%clk 0:00:43.4]}
32. Nxd2 {[%clk 0:00:30.2]} 32... Rxd2 {[%clk 0:00:26.7]} 33. h4 {[%clk
0:00:31]} 33... h5 {[%clk 0:00:20.1]} 34. axb5 {[%clk 0:00:29.8]} 34... axb5
{[%clk 0:00:22]} 35. Qa6 {[%clk 0:00:16.2]} 35... Rc1+ {[%clk 0:00:22.8]} 36.
Kh2 {[%clk 0:00:17.1]} 36... Rxf2 {[%clk 0:00:22.7]} 37. Qxb5 {[%clk 0:00:15.4]}
37... Rcc2 {[%clk 0:00:23.6]} 38. Qxh5 {[%clk 0:00:15.2]} 38... Rxg2+ {[%clk
0:00:23.9]} 39. Kh3 {[%clk 0:00:15.5]} 39... Rxb2 {[%clk 0:00:24.7]} 40. Qd5
{[%clk 0:00:14.9]} 40... Rgd2 {[%clk 0:00:24.9]} 41. Qa8+ {[%clk 0:00:15.1]}
41... Kh7 {[%clk 0:00:25.9]} 42. Qe4+ {[%clk 0:00:17]} 42... g6 {[%clk
0:00:26.8]} 43. Qe7 {[%clk 0:00:11.5]} 43... Rd3+ {[%clk 0:00:25.3]} 44. Kg4
{[%clk 0:00:12]} 44... Rd4+ {[%clk 0:00:24.5]} 45. Kf3 {[%clk 0:00:12.6]} 45...
Rb3+ {[%clk 0:00:25.6]} 46. Ke2 {[%clk 0:00:13.7]} 46... Rf4 {[%clk 0:00:23.9]}
47. h5 {[%clk 0:00:14.4]} 47... gxh5 {[%clk 0:00:22.9]} 48. Qg5 {[%clk
0:00:15.1]} 48... Rbf3 {[%clk 0:00:22.4]} 49. Qxh5+ {[%clk 0:00:15.9]} 49... Kg7
{[%clk 0:00:23.8]} 50. Qg5+ {[%clk 0:00:17.1]} 50... Kf8 {[%clk 0:00:24.9]} 51.
Qd8+ {[%clk 0:00:17.9]} 51... Kg7 {[%clk 0:00:26]} 52. Qg5+ {[%clk 0:00:18.6]}
52... Kh7 {[%clk 0:00:27.5]} 53. Qh5+ {[%clk 0:00:19.4]} 53... Kg8 {[%clk
0:00:29.4]} 54. Qg5+ {[%clk 0:00:20.4]} 54... Kf8 {[%clk 0:00:30.8]} 55. Qd8+
{[%clk 0:00:21.1]} 55... Kg7 {[%clk 0:00:31.9]} 56. Qg5+ {[%clk 0:00:21.8]}
56... Kh8 {[%clk 0:00:32.7]} 57. Qh5+ {[%clk 0:00:22.6]} 57... Kg8 {[%clk
0:00:34]} 58. Qg5+ {[%clk 0:00:23.5]} 58... Kf8 {[%clk 0:00:35.4]} 59. Qd8+
{[%clk 0:00:24.3]} 59... Kg7 {[%clk 0:00:36.7]} 60. Qg5+ {[%clk 0:00:25]} 60...
Kf8 {[%clk 0:00:38.6]} 61. Qd8+ {[%clk 0:00:25.7]} 61... Kg7 {[%clk 0:00:40.5]}
62. Qg5+ {[%clk 0:00:26.3]} 1/2-1/2

[Event "*** Titled Tuesday Blitz"]
[Site "Chess.com"]
[Date "2018.12.04"]
[Round "2"]
[White "pedromartinez91"]
[Black "Fins0905"]
[Result "0-1"]
[WhiteElo "2386"]
[BlackElo "2655"]
[TimeControl "180+2"]
[EndTime "13:24:00 PST"]
[Termination "Fins0905 won by checkmate"]

1. e4 {[%clk 0:03:01.1]} 1... c5 {[%clk 0:02:58.3]} 2. Nf3 {[%clk 0:03:01.3]}
2... e6 {[%clk 0:02:54.7]} 3. c4 {[%clk 0:03:02]} 3... a6 {[%clk 0:02:52.5]} 4.
Nc3 {[%clk 0:03:02.9]} 4... Qc7 {[%clk 0:02:50.8]} 5. a3 {[%clk 0:03:03.1]} 5...
Nf6 {[%clk 0:02:49.8]} 6. d4 {[%clk 0:03:03.9]} 6... cxd4 {[%clk 0:02:50.8]} 7.
Nxd4 {[%clk 0:03:05.8]} 7... b6 {[%clk 0:02:48.8]} 8. Be2 {[%clk 0:03:05.7]}
8... Bb7 {[%clk 0:02:47.8]} 9. f3 {[%clk 0:03:06.8]} 9... d6 {[%clk 0:02:48.4]}
10. O-O {[%clk 0:03:06.3]} 10... Nbd7 {[%clk 0:02:48.8]} 11. Kh1 {[%clk
0:03:07.3]} 11... g6 {[%clk 0:02:44.6]} 12. Be3 {[%clk 0:03:07.7]} 12... Bg7
{[%clk 0:02:45.1]} 13. Rc1 {[%clk 0:03:09.2]} 13... O-O {[%clk 0:02:45.8]} 14.
b4 {[%clk 0:02:54.4]} 14... Rac8 {[%clk 0:02:42]} 15. Na4 {[%clk 0:02:47]} 15...
Rfe8 {[%clk 0:02:36.8]} 16. Bg1 {[%clk 0:02:42.7]} 16... Qb8 {[%clk 0:02:35.3]}
17. Nb3 {[%clk 0:02:11.8]} 17... Bc6 {[%clk 0:02:18.5]} 18. Nb2 {[%clk
0:02:12.2]} 18... Bb7 {[%clk 0:02:09.3]} 19. Na4 {[%clk 0:01:44.5]} 19... Bc6
{[%clk 0:02:09.2]} 20. Nc3 {[%clk 0:01:45.7]} 20... b5 {[%clk 0:02:03.4]} 21.
Na5 {[%clk 0:01:41.1]} 21... bxc4 {[%clk 0:01:52.8]} 22. Bxc4 {[%clk 0:01:41.4]}
22... Bb5 {[%clk 0:01:27.8]} 23. Nxb5 {[%clk 0:01:37.8]} 23... axb5 {[%clk
0:01:28.1]} 24. Bb3 {[%clk 0:01:27.1]} 24... Rxc1 {[%clk 0:01:16.9]} 25. Qxc1
{[%clk 0:01:27.6]} 25... d5 {[%clk 0:01:18.4]} 26. exd5 {[%clk 0:01:26]} 26...
exd5 {[%clk 0:01:11.8]} 27. Bd4 {[%clk 0:01:10.5]} 27... Nb6 {[%clk 0:00:45.5]}
28. Qc6 {[%clk 0:00:52.9]} 28... Re6 {[%clk 0:00:45.2]} 29. Qxb5 {[%clk
0:00:51.8]} 29... Ng4 {[%clk 0:00:24.7]} 30. fxg4 {[%clk 0:00:42.3]} 30... Bxd4
{[%clk 0:00:25.9]} 31. Nc6 {[%clk 0:00:38.5]} 31... Rxc6 {[%clk 0:00:06]} 32.
Qxc6 {[%clk 0:00:38.3]} 32... Qe5 {[%clk 0:00:06.9]} 33. a4 {[%clk 0:00:21.3]}
33... Qe2 {[%clk 0:00:06.1]} 34. Qb5 {[%clk 0:00:22.3]} 34... Nc4 {[%clk
0:00:06.1]} 35. Bxc4 {[%clk 0:00:22]} 35... dxc4 {[%clk 0:00:07.3]} 36. Qb8+
{[%clk 0:00:21.1]} 36... Kg7 {[%clk 0:00:07.8]} 37. Qf4 {[%clk 0:00:22.6]} 37...
f6 {[%clk 0:00:06]} 38. Qc7+ {[%clk 0:00:19.5]} 38... Kh6 {[%clk 0:00:06.2]} 39.
Qf4+ {[%clk 0:00:20.6]} 39... Kg7 {[%clk 0:00:05.7]} 40. Qf3 {[%clk 0:00:19]}
40... Qd2 {[%clk 0:00:05.3]} 41. Rd1 {[%clk 0:00:19.4]} 41... Qb2 {[%clk
0:00:05.3]} 42. Qe4 {[%clk 0:00:18.9]} 42... Be5 {[%clk 0:00:06.2]} 43. Qxc4
{[%clk 0:00:19]} 43... Qf2 {[%clk 0:00:07.2]} 44. Qf1 {[%clk 0:00:18.6]} 44...
Qh4 {[%clk 0:00:07.8]} 45. Rd7+ {[%clk 0:00:18.5]} 45... Kh6 {[%clk 0:00:08.4]}
46. g3 {[%clk 0:00:18.8]} 46... Qxg4 {[%clk 0:00:08.9]} 47. Qc1+ {[%clk
0:00:18.7]} 47... g5 {[%clk 0:00:09.9]} 48. Qb1 {[%clk 0:00:19.2]} 48... Qxd7
{[%clk 0:00:10.6]} 49. Qe4 {[%clk 0:00:15.1]} 49... Qd1+ {[%clk 0:00:11.3]} 50.
Kg2 {[%clk 0:00:16.2]} 50... Qxa4 {[%clk 0:00:12.2]} 51. h4 {[%clk 0:00:15.3]}
51... Qa2+ {[%clk 0:00:11.2]} 52. Kh3 {[%clk 0:00:14.7]} 52... Qe6+ {[%clk
0:00:12]} 53. Kg2 {[%clk 0:00:14.9]} 53... Qd6 {[%clk 0:00:12.9]} 54. hxg5+
{[%clk 0:00:15.9]} 54... fxg5 {[%clk 0:00:13.7]} 55. Kh3 {[%clk 0:00:16.8]}
55... Kg7 {[%clk 0:00:13.6]} 56. b5 {[%clk 0:00:17.8]} 56... Bf6 {[%clk
0:00:12.8]} 57. Qb7+ {[%clk 0:00:17.5]} 57... Kg6 {[%clk 0:00:13.1]} 58. Qe4+
{[%clk 0:00:18.2]} 58... Kg7 {[%clk 0:00:14.1]} 59. Qb7+ {[%clk 0:00:19.1]}
59... Kh6 {[%clk 0:00:15.4]} 60. b6 {[%clk 0:00:19]} 60... Qe6+ {[%clk
0:00:16.5]} 61. Kg2 {[%clk 0:00:20]} 61... Qe2+ {[%clk 0:00:17.5]} 62. Kh3
{[%clk 0:00:20.9]} 62... g4# {[%clk 0:00:17.4]} 0-1

[Event "*** Titled Tuesday Blitz"]
[Site "Chess.com"]
[Date "2018.12.04"]
[Round "2"]
[White "dreamist"]
[Black "GrigorGrigorov"]
[Result "0-1"]
[WhiteElo "2636"]
[BlackElo "2813"]
[TimeControl "180+2"]
[EndTime "13:24:04 PST"]
[Termination "GrigorGrigorov won by resignation"]

1. Nf3 {[%clk 0:03:01.9]} 1... Nf6 {[%clk 0:03:00.3]} 2. c4 {[%clk 0:03:02.3]}
2... c5 {[%clk 0:03:00.8]} 3. g3 {[%clk 0:02:56.9]} 3... b6 {[%clk 0:03:01.1]}
4. Bg2 {[%clk 0:02:57.4]} 4... Bb7 {[%clk 0:03:01.8]} 5. Nc3 {[%clk 0:02:57.1]}
5... e6 {[%clk 0:02:59.8]} 6. O-O {[%clk 0:02:57.2]} 6... a6 {[%clk 0:02:58.8]}
7. Re1 {[%clk 0:02:45.1]} 7... d6 {[%clk 0:02:58.8]} 8. e4 {[%clk 0:02:41.7]}
8... Nbd7 {[%clk 0:02:59.4]} 9. d4 {[%clk 0:02:38.4]} 9... cxd4 {[%clk 0:03:00]}
10. Nxd4 {[%clk 0:02:39.2]} 10... Qc7 {[%clk 0:03:00.5]} 11. Be3 {[%clk
0:02:29.2]} 11... Be7 {[%clk 0:02:59.4]} 12. Rc1 {[%clk 0:02:29.5]} 12... O-O
{[%clk 0:02:58.5]} 13. b3 {[%clk 0:02:25.2]} 13... Rac8 {[%clk 0:02:54.9]} 14.
Qc2 {[%clk 0:02:10.4]} 14... Qb8 {[%clk 0:02:44.7]} 15. Qb1 {[%clk 0:01:55]}
15... Rfe8 {[%clk 0:02:39.8]} 16. h3 {[%clk 0:01:32]} 16... Bf8 {[%clk
0:02:32.5]} 17. g4 {[%clk 0:01:25.9]} 17... g6 {[%clk 0:02:28.9]} 18. Nde2
{[%clk 0:01:14.9]} 18... b5 {[%clk 0:02:10.2]} 19. cxb5 {[%clk 0:01:05.7]} 19...
axb5 {[%clk 0:02:09.7]} 20. b4 {[%clk 0:00:54.2]} 20... Ne5 {[%clk 0:02:03.2]}
21. Ng3 {[%clk 0:00:50.6]} 21... Bc6 {[%clk 0:01:56.1]} 22. Bd4 {[%clk
0:00:41.2]} 22... Bg7 {[%clk 0:01:54.3]} 23. f4 {[%clk 0:00:41.9]} 23... Nc4
{[%clk 0:01:53.7]} 24. g5 {[%clk 0:00:43.1]} 24... e5 {[%clk 0:01:37.9]} 25.
gxf6 {[%clk 0:00:40.9]} 25... exd4 {[%clk 0:01:38.3]} 26. fxg7 {[%clk
0:00:41.8]} 26... dxc3 {[%clk 0:01:39.2]} 27. Rxc3 {[%clk 0:00:42.4]} 27... Qa7+
{[%clk 0:01:36.3]} 28. Kh2 {[%clk 0:00:41.4]} 28... Qd4 {[%clk 0:01:29.2]} 29.
Qa1 {[%clk 0:00:32.9]} 29... Ra8 {[%clk 0:01:17.3]} 30. Rd1 {[%clk 0:00:26]}
30... Qxg7 {[%clk 0:01:15.6]} 31. Nf5 {[%clk 0:00:25.8]} 31... Qf6 {[%clk
0:01:06.3]} 32. Nh6+ {[%clk 0:00:25.3]} 32... Kf8 {[%clk 0:00:54.3]} 33. Ng4
{[%clk 0:00:25.1]} 33... Qxf4+ {[%clk 0:00:52]} 34. Kh1 {[%clk 0:00:26.1]} 34...
Bxe4 {[%clk 0:00:48.6]} 35. Rf1 {[%clk 0:00:19.1]} 35... Rxa2 {[%clk 0:00:33.8]}
36. Rxf4 {[%clk 0:00:05.1]} 36... Bxg2+ {[%clk 0:00:32.8]} 37. Kh2 {[%clk
0:00:04.9]} 37... Rxa1 {[%clk 0:00:33.2]} 38. Kxg2 {[%clk 0:00:06.1]} 38... h5
{[%clk 0:00:26.8]} 39. Nh6 {[%clk 0:00:06.8]} 39... f5 {[%clk 0:00:23.4]} 40.
Nxf5 {[%clk 0:00:03.9]} 40... gxf5 {[%clk 0:00:21.6]} 41. Rxf5+ {[%clk
0:00:05.8]} 41... Ke7 {[%clk 0:00:22.3]} 42. Rxh5 {[%clk 0:00:06.2]} 42... Rg8+
{[%clk 0:00:19.8]} 43. Kh2 {[%clk 0:00:07]} 43... Ne5 {[%clk 0:00:19.3]} 44.
Rh7+ {[%clk 0:00:07.7]} 44... Ke6 {[%clk 0:00:19.9]} 45. Rh6+ {[%clk 0:00:09.1]}
45... Kd5 {[%clk 0:00:20.9]} 46. Rh5 {[%clk 0:00:09]} 46... Ra2+ {[%clk
0:00:20.7]} 47. Kh1 {[%clk 0:00:09.5]} 47... Kd4 {[%clk 0:00:21.6]} 48. Rb3
{[%clk 0:00:06.8]} 48... Rc8 {[%clk 0:00:22.1]} 49. Rh4+ {[%clk 0:00:07.4]}
49... Kd5 {[%clk 0:00:22.5]} 50. Rb1 {[%clk 0:00:08.6]} 50... Rcc2 {[%clk
0:00:21.7]} 51. Rd1+ {[%clk 0:00:09.2]} 51... Kc6 {[%clk 0:00:20.7]} 52. Rf4
{[%clk 0:00:09.2]} 52... Rh2+ {[%clk 0:00:21.2]} 53. Kg1 {[%clk 0:00:10.5]}
53... Rag2+ {[%clk 0:00:22]} 54. Kf1 {[%clk 0:00:11.8]} 54... Nc4 {[%clk
0:00:23.7]} 55. Rc1 {[%clk 0:00:06.2]} 55... Kb6 {[%clk 0:00:22.9]} 56. Rcxc4
{[%clk 0:00:03]} 56... bxc4 {[%clk 0:00:23.6]} 57. Rxc4 {[%clk 0:00:04.9]} 57...
Rc2 {[%clk 0:00:24.2]} 0-1